bitfinex-derivatives/quotes_SOLF0:USTF0_20250307
["timestamp","ask_amount","ask_price","bid_price","bid_amount"]
[1741347665605,6.9863,143.14,143.11,11.775735]
[1741347665913,26.1,143.17,143.13,11.775735]
[1741347666313,26.1,143.17,143.11,11.775735]
[1741347666616,0.05131892,143.15,143.11,11.775735]
[1741347666918,0.05131892,143.15,143.11,18.762835]
[1741347667112,7.03711892,143.15,143.11,11.775735]
[1741347667620,0.05131892,143.15,143.11,11.775735]
[1741347668221,0.05131892,143.15,143.13,11.775735]
[1741347669316,0.05131892,143.15,143.13,18.761935]
[1741347669717,0.05131892,143.15,143.13,11.775735]
[1741347670621,0.05131892,143.15,143.13,18.762135]
[1741347670915,0.05131892,143.15,143.13,11.775735]
[1741347671320,0.05131892,143.15,143.13,18.762035]
[1741347671520,0.05131892,143.15,143.13,11.775735]
[1741347672216,0.05131892,143.15,143.14,6.986]
[1741347672922,0.05131892,143.15,143.13,18.762035]
[1741347675225,0.05131892,143.15,143.13,11.775735]
[1741347675422,0.05131892,143.15,143.14,6.986]
[1741347676023,268.235735,143.22,143.15,11.775735]
[1741347676526,6.9833,143.2,143.15,11.775735]
[1741347676829,268.235735,143.22,143.15,37.875735]
[1741347677128,0.05210598,143.19,143.16,0.05014555]
[1741347677921,0.05210598,143.19,143.17,11.775735]
[1741347678529,0.05210598,143.19,143.18,6.984]
[1741347679028,0.05210598,143.19,143.17,18.759935]
[1741347679225,0.05210598,143.19,143.17,11.775735]
[1741347679531,7.03570598,143.19,143.17,11.775735]
[1741347679728,0.05210598,143.19,143.17,11.775735]
[1741347680024,1.8729,143.25,143.17,11.775735]
[1741347680228,6.9819,143.23,143.19,18.758935]
[1741347680431,6.9819,143.23,143.19,11.775735]
[1741347680628,11.775735,143.24,143.16,1.8959]
[1741347680829,11.775735,143.24,143.18,11.775735]
[1741347681129,0.05333579,143.22,143.2,0.04710238]
[1741347681632,6.9826,143.21,143.2,0.04710238]
[1741347681930,6.9826,143.21,143.2,2.38e-06]
[1741347682232,10.4826,143.21,143.2,2.38e-06]
[1741347683528,6.9826,143.21,143.2,2.38e-06]
[1741347688327,10.4826,143.21,143.2,2.38e-06]
[1741347690128,3.5,143.21,143.11,6.0835]
[1741347690329,11.775735,143.19,143.12,11.775735]
[1741347690530,37.875735,143.19,143.12,11.775735]
[1741347691031,37.875735,143.19,143.14,11.775735]
[1741347691231,6.9858,143.15,143.14,11.775735]
[1741347692232,0.04612325,143.18,143.14,11.775735]
[1741347692533,6.9847,143.17,143.14,11.775735]
[1741347692836,6.9847,143.17,143.14,18.761435]
[1741347693130,7.03042325,143.18,143.16,11.775735]
[1741347693334,0.04612325,143.18,143.16,11.775735]
[1741347693835,7.03032325,143.18,143.16,11.775735]
[1741347696228,6.9845,143.17,143.16,11.775735]
[1741347696834,0.04612325,143.18,143.14,11.775735]
[1741347696835,6.9858,143.15,143.14,11.775735]
[1741347697035,0.04612325,143.18,143.13,0.04439113]
[1741347697235,26.14612325,143.18,143.13,0.04439113]
[1741347697435,6.986,143.14,143.13,0.04439113]
[1741347703537,0.04835803,143.15,143.13,11.82012613]
[1741347703929,0.04835803,143.15,143.13,18.80632613]
[1741347704128,6.986,143.14,143.13,11.82012613]
[1741347704434,0.04835803,143.15,143.13,11.82012613]
[1741347704737,7.03405803,143.15,143.13,11.82012613]
[1741347705040,7.03405803,143.15,143.13,18.80642613]
[1741347705041,0.04835803,143.15,143.13,18.80642613]
[1741347705940,0.04835803,143.15,143.14,6.986]
[1741347707037,194.0,143.2,143.13,11.82012613]
[1741347707339,6.9839,143.19,143.15,18.760935]
[1741347707731,194.0,143.2,143.15,18.760935]
[1741347707940,6.9844,143.18,143.15,11.775735]
[1741347708337,7.0316715,143.18,143.15,11.82453024]
[1741347709341,6.985,143.16,143.15,0.04879524]
[1741347711833,6.985,143.16,143.15,9.524e-05]
[1741347729652,6.9848,143.17,143.15,11.77583024]
[1741347729951,0.0472715,143.18,143.15,11.77583024]
[1741347730151,0.0472715,143.18,143.15,9.524e-05]
[1741347730454,6.985,143.16,143.15,9.524e-05]
[1741347733061,6.9848,143.17,143.15,9.524e-05]
[1741347733258,0.0472715,143.18,143.15,9.524e-05]
[1741347733751,6.985,143.16,143.15,9.524e-05]
[1741347735959,0.0472715,143.18,143.15,11.77583024]
[1741347736159,0.0472715,143.18,143.17,11.775735]
[1741347736750,7.0312715,143.18,143.17,11.775735]
[1741347737261,0.0472715,143.18,143.17,11.775735]
[1741347740261,195.9032,143.24,143.2,6.9829]
[1741347740461,1.9032,143.24,143.19,11.775735]
[1741347741367,7.03312937,143.23,143.2,7.02938697]
[1741347741561,7.03312937,143.23,143.2,0.04638697]
[1741347741762,0.05132937,143.23,143.2,0.04638697]
[1741347742071,0.05132937,143.23,143.21,6.9825]
[1741347742460,0.05132937,143.23,143.2,7.02918697]
[1741347742860,6.9822,143.22,143.2,7.02918697]
[1741347743061,0.05132937,143.23,143.2,7.02918697]
[1741347743568,7.03322937,143.23,143.2,7.02918697]
[1741347743769,7.03322937,143.23,143.21,6.9825]
[1741347744665,7.03322937,143.23,143.2,0.04638697]
[1741347745363,0.05132937,143.23,143.2,0.04638697]
[1741347745566,0.05132937,143.23,143.21,11.775735]
[1741347746264,0.05132937,143.23,143.22,6.9821]
[1741347748664,0.05132937,143.23,143.21,18.758035]
[1741347749370,7.03292937,143.23,143.21,18.758035]
[1741347750072,7.03292937,143.23,143.21,11.775735]
[1741347750680,0.05132937,143.23,143.22,6.9821]
[1741347751968,0.05132937,143.23,143.21,11.775735]
[1741347752674,0.05132937,143.23,143.22,6.9821]
[1741347756477,37.835735,143.3,143.21,11.775735]
[1741347756772,37.835735,143.3,143.24,18.756635]
[1741347757664,0.05195312,143.28,143.26,0.04677639]
[1741347758270,6.9796,143.27,143.26,0.04677639]
[1741347760174,6.9796,143.27,143.26,7.639e-05]
[1741347765084,8.9164,143.27,143.26,7.639e-05]
[1741347765783,8.9164,143.27,143.16,6.9847]
[1741347765784,6.9842,143.18,143.17,11.775735]
[1741347766682,26.06,143.24,143.17,11.775735]
[1741347766880,26.06,143.24,143.2,11.775735]
[1741347767077,0.04468209,143.21,143.2,11.775735]
[1741347768383,7.02728209,143.21,143.2,11.775735]
[1741347768784,0.04468209,143.21,143.2,11.775735]
[1741347769281,1.9242,143.26,143.2,37.835735]
[1741347769484,1.9242,143.26,143.22,11.775735]
[1741347769987,6.9813,143.24,143.22,11.775735]
[1741347770487,0.05306538,143.24,143.22,11.82894696]
[1741347771187,7.03436538,143.24,143.22,11.82894696]
[1741347772791,0.05306538,143.24,143.22,11.82894696]
[1741347773390,0.05306538,143.24,143.22,18.81064696]
[1741347774495,0.05306538,143.24,143.22,11.82894696]
[1741347775091,6.9816,143.23,143.22,11.82894696]
[1741347775484,6.9816,143.23,143.22,0.05321196]
[1741347777790,6.9816,143.23,143.22,1.196e-05]
[1741347796412,0.05306538,143.24,143.22,1.196e-05]
[1741347796807,6.9816,143.23,143.22,1.196e-05]
[1741347797915,0.05306538,143.24,143.22,1.196e-05]
[1741347798816,6.9816,143.23,143.22,1.196e-05]
[1741347805623,18.757335,143.23,143.22,1.196e-05]
[1741347813028,20.822635,143.23,143.22,1.196e-05]
[1741347813338,24.322635,143.23,143.22,1.196e-05]
[1741347813931,20.822635,143.23,143.22,1.196e-05]
[1741347814436,24.322635,143.23,143.22,1.196e-05]
[1741347814638,20.822635,143.23,143.22,1.196e-05]
[1741347816532,24.322635,143.23,143.22,1.196e-05]
[1741347817824,20.822635,143.23,143.22,1.196e-05]
[1741347820538,40.64832754,143.23,143.22,1.196e-05]
[1741347820733,56.70247526,143.23,143.22,1.196e-05]
[1741347820934,40.64832754,143.23,143.22,1.196e-05]
[1741347821336,24.322635,143.23,143.22,1.196e-05]
[1741347822041,6.9855,143.15,143.13,18.762135]
[1741347822934,7.03142067,143.15,143.13,18.81087315]
[1741347823140,0.04592067,143.15,143.13,11.82447315]
[1741347824040,7.03162067,143.15,143.13,11.82447315]
[1741347825442,6.986,143.14,143.13,11.82447315]
[1741347825742,0.04592067,143.15,143.13,11.82447315]
[1741347826140,7.03182067,143.15,143.13,11.82447315]
[1741347827045,0.04592067,143.15,143.13,11.82447315]
[1741347827244,6.986,143.14,143.13,11.82447315]
[1741347827446,0.04592067,143.15,143.13,18.81087315]
[1741347827845,7.03172067,143.15,143.13,18.81087315]
[1741347828551,7.03172067,143.15,143.13,11.82447315]
[1741347828755,0.04592067,143.15,143.13,11.82447315]
[1741347829455,6.986,143.14,143.13,11.82447315]
[1741347829757,0.04592067,143.15,143.13,37.86447315]
[1741347830249,41.810235,143.22,143.13,37.86447315]
[1741347830451,258.60142754,143.24,143.17,11.775735]
[1741347830653,26.04,143.23,143.19,11.775735]
[1741347831454,6.9826,143.21,143.2,0.05114684]
[1741347836965,0.04916346,143.22,143.2,0.05114684]
[1741347837165,0.04916346,143.22,143.21,11.775735]
[1741347837669,0.04916346,143.22,143.21,18.758335]
[1741347838167,6.9808,143.25,143.21,11.775735]
[1741347838366,6.9808,143.25,143.22,6.9816]
[1741347838671,55.01960909,143.28,143.23,11.775735]
[1741347838858,55.01960909,143.28,143.24,6.9808]
[1741347839265,6.9799,143.27,143.24,6.9808]
[1741347839465,0.05271129,143.27,143.25,0.0516794]
[1741347839665,6.9801,143.26,143.25,0.0516794]
[1741347843767,0.05271129,143.27,143.25,11.8274144]
[1741347843964,16.26261777,143.31,143.25,37.8474144]
[1741347844170,16.26261777,143.31,143.28,11.775735]
[1741347844363,6.9784,143.3,143.28,11.775735]
[1741347845265,0.04925092,143.3,143.28,11.82667781]
[1741347846365,28.99960909,143.34,143.28,11.82667781]
[1741347846571,28.99960909,143.34,143.3,18.753835]
[1741347846970,6.9767,143.33,143.3,18.753835]
[1741347847272,37.795735,143.36,143.31,6.9775]
[1741347847570,7.02787433,143.33,143.3,11.775735]
[1741347847769,7.02787433,143.33,143.32,0.05237787]
[1741347849968,7.02787433,143.33,143.32,7.787e-05]
[1741347878594,44.78360933,143.33,143.32,7.787e-05]
[1741347879097,7.02787433,143.33,143.32,7.787e-05]
[1741347879693,0.05117433,143.33,143.32,7.787e-05]
[1741347879891,0.05117433,143.33,143.32,11.77581287]
[1741347880092,0.05117433,143.33,143.32,18.75301287]
[1741347880601,0.05117433,143.33,143.32,7.787e-05]
[1741347881093,7.02787433,143.33,143.32,7.787e-05]
[1741347888697,0.05117433,143.33,143.32,11.77581287]
[1741347889300,7.02787433,143.33,143.32,11.77581287]
[1741347889505,0.05117433,143.33,143.32,11.77581287]
[1741347891301,0.05117433,143.33,143.32,18.75301287]
[1741347891904,6.9764,143.34,143.32,18.75301287]
[1741347892105,16.29826715,143.37,143.32,18.75301287]
[1741347892305,6.9759,143.35,143.33,6.9767]
[1741347892504,6.9759,143.35,143.32,11.77581287]
[1741347893010,6.9759,143.35,143.32,18.75281287]
[1741347893208,7.02137356,143.35,143.32,18.75281287]
[1741347893406,0.04547356,143.35,143.33,6.9765]
[1741347893604,0.04547356,143.35,143.34,11.775735]
[1741347894805,0.04547356,143.35,143.34,18.751935]
[1741347895204,0.04547356,143.35,143.34,11.775735]
[1741347896509,7.02117356,143.35,143.34,11.775735]
[1741347897413,0.04547356,143.35,143.34,11.775735]
[1741347897914,0.04547356,143.35,143.34,18.751935]
[1741347899312,1.9803,143.41,143.34,37.735735]
[1741347899508,6.974,143.39,143.36,18.750735]
[1741347900122,6.9735,143.4,143.38,18.750035]
[1741347900422,6.9735,143.4,143.38,11.775735]
[1741347900626,7.02394355,143.4,143.38,11.82237515]
[1741347900815,6.9738,143.39,143.38,11.82237515]
[1741347901212,6.9738,143.39,143.38,0.04664015]
[1741347905627,6.9738,143.39,143.38,11.82237515]
[1741347906329,7.02394355,143.4,143.38,11.82237515]
[1741347906520,0.05044355,143.4,143.38,11.82237515]
[1741347906826,6.9738,143.39,143.38,11.82237515]
[1741347907920,0.05044355,143.4,143.38,11.82237515]
[1741347908116,0.05044355,143.4,143.38,37.78237515]
[1741347908521,0.05044355,143.4,143.39,6.9738]
[1741347909627,6.9715,143.44,143.41,6.9726]
[1741347909821,25.96,143.47,143.42,11.775735]
[1741347910029,46.56224409,143.49,143.44,11.775735]
[1741347910325,32.90200909,143.49,143.46,11.775735]
[1741347910525,30.91430909,143.49,143.46,11.775735]
[1741347910724,29.05171181,143.49,143.46,11.82159463]
[1741347911024,6.9697,143.48,143.46,11.82159463]
[1741347911226,0.05210272,143.49,143.46,11.82159463]
[1741347911428,7.02120272,143.49,143.48,11.775735]
[1741347912524,6.9699,143.47,143.46,37.78159463]
[1741347914122,6.9699,143.47,143.46,0.04585963]
[1741347916929,6.9699,143.47,143.46,11.82159463]
[1741347919125,6.9699,143.47,143.46,0.04585963]
[1741347921432,0.05210272,143.49,143.46,11.82159463]
[1741347921633,0.05210272,143.49,143.48,11.775735]
[1741347922728,7.02100272,143.49,143.48,11.775735]
[1741347931529,0.05210272,143.49,143.46,0.04585963]
[1741347932136,6.9699,143.47,143.46,0.04585963]
[1741347933537,15.743235,143.48,143.4,25.92]
[1741347933734,15.743235,143.48,143.39,11.775735]
[1741347933735,11.775735,143.43,143.39,11.775735]
[1741347933933,11.775735,143.43,143.37,11.775735]
[1741347934129,11.775735,143.41,143.37,11.775735]
[1741347934532,6.9741,143.39,143.38,0.04839471]
[1741347935232,7.0184307,143.4,143.38,0.04839471]
[1741347935629,0.0450307,143.4,143.38,0.04839471]
[1741347936438,6.9738,143.39,143.38,0.04839471]
[1741347937840,6.9753,143.36,143.35,11.775735]
[1741347939238,6.9757,143.35,143.34,0.04957264]
[1741347943644,25.92,143.36,143.34,0.04957264]
[1741347944045,6.9757,143.35,143.34,0.04957264]
[1741347947648,0.04560075,143.37,143.34,0.04957264]
[1741347947847,0.04560075,143.37,143.34,18.44904226]
[1741347948654,0.04560075,143.37,143.34,44.36904226]
[1741347949045,0.04560075,143.37,143.35,6.9754]
[1741347949851,0.04560075,143.37,143.36,6.9753]
[1741347950543,0.04560075,143.37,143.35,6.9755]
[1741347950950,0.04560075,143.37,143.34,44.36904226]
[1741347951149,7.02060075,143.37,143.34,51.34504226]
[1741347951556,0.04560075,143.37,143.34,44.36904226]
[1741347951742,0.04560075,143.37,143.34,25.96957264]
[1741347952341,6.9757,143.35,143.34,0.04957264]
[1741347955845,0.04560075,143.37,143.34,0.04957264]
[1741347956056,0.04560075,143.37,143.34,7.02577264]
[1741347956452,6.9757,143.36,143.34,0.04957264]
[1741347956658,0.04560075,143.37,143.34,0.04957264]
[1741347957055,6.9757,143.35,143.34,0.04957264]
[1741347960360,6.9757,143.35,143.34,7.264e-05]
[1741347963378,6.9755,143.36,143.34,7.264e-05]
[1741347963664,0.04560075,143.37,143.35,11.78053256]
[1741347963964,6.9757,143.35,143.34,7.264e-05]
[1741347973271,0.04560075,143.37,143.34,7.264e-05]
[1741347973969,0.04560075,143.37,143.35,18.75623256]
[1741347974372,0.04560075,143.37,143.35,11.78053256]
[1741347975169,0.04560075,143.37,143.35,18.75603256]
[1741347975970,0.04560075,143.37,143.36,6.9753]
[1741347976770,124.11773651,143.41,143.36,25.92]
[1741347976976,124.11773651,143.41,143.39,18.75393256]
[1741347977276,6.9724,143.42,143.39,11.78053256]
[1741347978178,7.02410264,143.42,143.39,11.82978557]
[1741347980377,6.9729,143.41,143.39,11.82978557]
[1741347980570,0.05170264,143.42,143.39,11.82978557]
[1741347980774,11.8322352,143.42,143.39,0.04925301]
[1741347981480,6.9733,143.4,143.39,0.04925301]
[1741347982280,6.9733,143.4,143.33,11.78053256]
[1741347982281,6.976,143.35,143.33,11.78053256]
[1741347983180,6.9762,143.34,143.33,11.78053256]
[1741347983379,6.9762,143.34,143.33,11.82877578]
[1741347984381,7.02366999,143.35,143.33,11.82877578]
[1741347984583,0.04776999,143.35,143.33,18.80547578]
[1741347985280,0.04776999,143.35,143.33,11.82877578]
[1741347986382,7.02376999,143.35,143.33,11.82877578]
[1741347987077,6.9762,143.34,143.33,11.82877578]
[1741347987681,7.02366999,143.35,143.33,11.82877578]
[1741347989184,0.04776999,143.35,143.33,11.82877578]
[1741347989384,6.9762,143.34,143.33,0.04824322]
[1741347990284,0.04776999,143.35,143.33,0.04824322]
[1741347990585,0.04776999,143.35,143.34,11.78053256]
[1741347991387,7.02346999,143.35,143.34,11.78053256]
[1741347991584,0.04776999,143.35,143.34,11.78053256]
[1741347992985,0.04776999,143.35,143.33,18.80527578]
[1741347993391,7.02346999,143.35,143.33,18.80527578]
[1741347994288,0.04776999,143.35,143.33,18.80527578]
[1741347994883,0.04776999,143.35,143.33,11.82877578]
[1741347995087,0.04776999,143.35,143.34,6.9762]
[1741347995885,7.02356999,143.35,143.33,18.80527578]
[1741347998088,6.9762,143.34,143.33,0.04824322]
[1741347999583,0.04776999,143.35,143.33,0.04824322]
[1741347999788,7.02366999,143.35,143.33,18.80537578]
[1741348000385,0.04776999,143.35,143.34,6.9762]
[1741348002190,0.04776999,143.35,143.33,11.82877578]
[1741348002995,6.9762,143.34,143.33,11.82877578]
[1741348003295,6.9762,143.34,143.33,0.04824322]
[1741348012600,6.9787,143.29,143.27,18.76013256]
[1741348013001,6.9787,143.29,143.27,11.78053256]
[1741348013405,6.9795,143.28,143.26,11.78053256]
[1741348013704,7.03091831,143.28,143.26,11.83267286]
[1741348014002,6.9796,143.27,143.26,0.0521403]
[1741348016497,7.03081831,143.28,143.26,0.0521403]
[1741348016698,0.05141831,143.28,143.26,0.0521403]
[1741348016897,6.9796,143.27,143.26,0.0521403]
[1741348017797,0.05141831,143.28,143.26,11.83267286]
[1741348018501,0.05141831,143.28,143.27,6.9796]
[1741348020110,0.05141831,143.28,143.26,11.83267286]
[1741348020696,6.9796,143.27,143.26,11.83267286]
[1741348021107,6.9796,143.27,143.26,0.0521403]
[1741348025412,7.03071831,143.28,143.26,0.0521403]
[1741348026211,0.05141831,143.28,143.26,0.0521403]
[1741348026413,6.9796,143.27,143.26,0.0521403]
[1741348026612,0.05141831,143.28,143.26,0.0521403]
[1741348026822,7.03091831,143.28,143.26,0.0521403]
[1741348027107,0.05141831,143.28,143.26,0.0521403]
[1741348027614,6.9796,143.27,143.26,0.0521403]
[1741348030005,6.9796,143.27,143.26,4.03e-05]
[1741348039821,0.05141831,143.28,143.26,4.03e-05]
[1741348040020,0.05141831,143.28,143.27,6.9796]
[1741348040723,0.05141831,143.28,143.26,6.9798403]
[1741348041821,0.05141831,143.28,143.26,4.03e-05]
[1741348042021,0.05141831,143.28,143.27,6.9796]
[1741348043016,0.05141831,143.28,143.26,18.76374456]
[1741348043217,0.05141831,143.28,143.26,4.03e-05]
[1741348043613,6.9796,143.27,143.26,4.03e-05]
[1741348044215,7.03091831,143.28,143.26,4.03e-05]
[1741348045520,0.05141831,143.28,143.26,4.03e-05]
[1741348045720,6.9796,143.27,143.26,4.03e-05]
[1741348049328,0.05141831,143.28,143.26,4.03e-05]
[1741348049528,0.05141831,143.28,143.26,11.78394456]
[1741348049926,0.05141831,143.28,143.27,6.9796]
[1741348051330,0.05141831,143.28,143.26,18.76384456]
[1741348051521,0.05141831,143.28,143.26,11.78394456]
[1741348051926,0.05141831,143.28,143.27,6.9796]
[1741348052934,0.05141831,143.28,143.26,11.78394456]
[1741348053439,0.05141831,143.28,143.27,6.9796]
[1741348056336,0.05141831,143.28,143.27,32.8596]
[1741348058736,29.9822,143.35,143.27,25.88]
[1741348058927,6.976,143.35,143.3,11.78390426]
[1741348059128,46.78216234,143.38,143.32,11.78390426]
[1741348059327,46.78216234,143.38,143.33,6.9765]
[1741348059730,6.9756,143.36,143.33,6.9765]
[1741348059933,6.9756,143.36,143.34,7.02931896]
[1741348060241,6.9756,143.36,143.34,0.05321896]
[1741348060439,7.01998892,143.37,143.35,6.9757]
[1741348060943,0.04488892,143.37,143.35,6.9757]
[1741348061235,0.04488892,143.37,143.34,11.83712322]
[1741348061936,6.9757,143.36,143.34,11.83712322]
[1741348062737,7.01978892,143.37,143.34,18.81332322]
[1741348062937,7.01978892,143.37,143.34,11.83712322]
[1741348063237,0.04488892,143.37,143.34,11.83712322]
[1741348063638,6.9754,143.36,143.34,11.83712322]
[1741348064440,6.9753,143.36,143.34,11.83712322]
[1741348067238,6.9753,143.36,143.34,18.81332322]
[1741348068341,7.01998892,143.37,143.34,18.81332322]
[1741348068635,0.04488892,143.37,143.35,6.9756]
[1741348068842,0.04488892,143.37,143.36,11.78390426]
[1741348077643,0.04488892,143.37,143.36,18.75920426]
[1741348080338,5.8666,143.44,143.39,6.9734]
[1741348080541,5.8666,143.44,143.39,18.75730426]
[1741348081239,5.8666,143.44,143.39,11.78390426]
[1741348081551,5.8666,143.44,143.4,0.04601049]
[1741348081552,11.83198553,143.43,143.4,0.04601049]
[1741348081948,6.9723,143.42,143.4,0.04601049]
[1741348082545,0.04808127,143.43,143.4,0.04601049]
[1741348082744,0.04808127,143.43,143.41,11.78390426]
[1741348082943,2.0365,143.48,143.43,6.9715]
[1741348083149,6.9706,143.46,143.43,18.75540426]
[1741348084050,2.0365,143.48,143.43,11.78390426]
[1741348084253,0.04871613,143.46,143.43,0.05292445]
[1741348084754,6.9714,143.44,143.43,0.05292445]
[1741348085553,6.9733,143.4,143.39,37.64390426]
[1741348085950,6.9731,143.41,143.39,37.64390426]
[1741348086155,11.78390426,143.45,143.39,37.64390426]
[1741348086554,6.9733,143.4,143.39,37.64390426]
[1741348087157,0.04428649,143.43,143.39,37.64390426]
[1741348087760,6.9733,143.4,143.39,37.64390426]
[1741348088156,0.04428649,143.43,143.38,0.04644781]
[1741348088458,6.9738,143.39,143.38,0.04644781]
[1741348089654,7.02187069,143.4,143.38,0.04644781]
[1741348089854,0.04837069,143.4,143.39,11.78390426]
[1741348090254,0.04837069,143.4,143.39,18.75770426]
[1741348090956,0.04837069,143.4,143.39,11.78390426]
[1741348091356,7.02167069,143.4,143.39,11.78390426]
[1741348091754,0.04837069,143.4,143.39,11.78390426]
[1741348093261,7.02167069,143.4,143.39,11.78390426]
[1741348094466,0.04837069,143.4,143.39,11.78390426]
[1741348095461,7.02167069,143.4,143.39,11.78390426]
[1741348097051,0.04837069,143.4,143.39,11.78390426]
[1741348098854,0.04837069,143.4,143.39,18.75770426]
[1741348100060,6.9711,143.45,143.43,6.9718]
[1741348100260,2.0191,143.46,143.42,11.78390426]
[1741348101160,0.0477514,143.45,143.43,0.05087567]
[1741348101962,0.0477514,143.45,143.44,6.9714]
[1741348102266,0.0477514,143.45,143.44,11.78390426]
[1741348103156,7.0186514,143.45,143.44,11.78390426]
[1741348104064,7.0186514,143.45,143.43,0.05087567]
[1741348104065,6.9714,143.44,143.43,0.05087567]
[1741348107368,0.0477514,143.45,143.43,0.05087567]
[1741348107971,0.0477514,143.45,143.43,7.02237567]
[1741348108173,0.0477514,143.45,143.43,0.05087567]
[1741348108777,6.9714,143.44,143.43,0.05087567]
[1741348109679,0.0477514,143.45,143.43,0.05087567]
[1741348109881,0.0477514,143.45,143.44,37.60390426]
[1741348110980,0.0477514,143.45,143.44,44.57530426]
[1741348113682,0.0477514,143.45,143.44,37.60390426]
[1741348115277,0.0477514,143.45,143.44,44.57530426]
[1741348116980,0.0477514,143.45,143.44,37.60390426]
[1741348117782,0.0477514,143.45,143.44,44.57530426]
[1741348117978,15.53248908,143.51,143.44,37.60390426]
[1741348118182,1.9423,143.52,143.48,11.78390426]
[1741348118388,6.9688,143.5,143.48,11.78390426]
[1741348118790,6.9688,143.5,143.48,18.75330426]
[1741348118990,6.9689,143.49,143.48,11.78390426]
[1741348119191,1.9423,143.52,143.48,11.78390426]
[1741348119392,0.04660384,143.51,143.49,0.04812278]
[1741348119589,7.01480384,143.51,143.49,0.04812278]
[1741348120095,0.04660384,143.51,143.5,11.78390426]
[1741348121089,7.01460384,143.51,143.49,0.04812278]
[1741348121394,0.04660384,143.51,143.49,0.04812278]
[1741348121887,6.9685,143.5,143.49,0.04812278]
[1741348122890,0.04660384,143.51,143.49,0.04812278]
[1741348123094,7.01500384,143.51,143.5,11.78390426]
[1741348123889,6.9685,143.5,143.49,0.04812278]
[1741348125692,1.99800384,143.51,143.45,11.78390426]
[1741348125898,11.78390426,143.5,143.44,37.60390426]
[1741348126099,11.78390426,143.48,143.43,11.78390426]
[1741348126393,6.9722,143.43,143.42,11.78390426]
[1741348126593,1.9975,143.47,143.41,11.78390426]
[1741348126793,6.9722,143.43,143.41,11.78390426]
[1741348127198,6.9722,143.43,143.41,11.82868055]
[1741348127592,0.05334518,143.45,143.41,11.82868055]
[1741348127797,0.05334518,143.45,143.43,11.78390426]
[1741348128296,7.02454518,143.45,143.43,11.78390426]
[1741348131196,6.9714,143.44,143.43,11.78390426]
[1741348131900,6.9723,143.42,143.41,0.04477629]
[1741348132198,0.05334518,143.45,143.41,11.82868055]
[1741348132399,6.9721,143.43,143.41,11.82868055]
[1741348132592,0.05334518,143.45,143.41,18.80138055]
[1741348132792,0.05334518,143.45,143.43,11.78390426]
[1741348133200,0.05334518,143.45,143.43,18.75550426]
[1741348134001,7.02434518,143.45,143.43,11.78390426]
[1741348136700,0.05334518,143.45,143.43,11.78390426]
[1741348136898,0.05334518,143.45,143.44,6.9714]
[1741348137201,0.05334518,143.45,143.44,32.7714]
[1741348137605,1.8775,143.51,143.44,25.8]
[1741348137902,1.8775,143.51,143.49,11.78390426]
[1741348138296,8.8457,143.51,143.49,11.78390426]
[1741348138695,106.33190002,143.53,143.49,11.78390426]
[1741348139001,0.04553721,143.51,143.49,11.83587232]
[1741348139896,6.9685,143.5,143.49,11.83587232]
[1741348141101,7.01363721,143.51,143.49,11.83587232]
[1741348141300,0.04553721,143.51,143.49,11.83587232]
[1741348141502,6.9685,143.5,143.49,11.83587232]
[1741348142704,6.9685,143.5,143.49,0.05196806]
[1741348143005,11.82944147,143.51,143.44,25.8]
[1741348143191,3.9603,143.5,143.44,25.8]
[1741348143790,6.9712,143.45,143.43,11.78390426]
[1741348143996,0.04835206,143.48,143.45,0.05303468]
[1741348144494,6.9704,143.46,143.45,0.05303468]
[1741348147408,3.48,143.46,143.38,11.78390426]
[1741348147599,11.78390426,143.44,143.38,11.78390426]
[1741348147996,1.9615,143.43,143.38,11.78390426]
[1741348148199,6.9738,143.39,143.38,11.78390426]
[1741348150211,0.04401414,143.42,143.38,11.78390426]
[1741348150403,6.9736,143.4,143.38,11.78390426]
[1741348150606,6.9736,143.4,143.37,25.4064908]
[1741348151201,6.9739,143.39,143.37,18.4317908]
[1741348151507,0.04401414,143.42,143.37,0.05019262]
[1741348151803,6.9743,143.38,143.37,0.05019262]
[1741348159606,6.978,143.31,143.29,27.7025]
[1741348159906,6.978,143.31,143.29,25.8]
[1741348160109,1.8796,143.37,143.27,20.38539818]
[1741348160313,6.9781,143.31,143.28,25.8]
[1741348160718,7.02307331,143.31,143.28,25.8666133]
[1741348161108,0.04497331,143.31,143.28,32.8457133]
[1741348161812,0.04497331,143.31,143.28,25.8666133]
[1741348162010,0.04497331,143.31,143.29,6.9786]
[1741348162614,0.04497331,143.31,143.3,6.9782]
[1741348163618,1.9782,143.38,143.29,18.38159818]
[1741348163819,6.9756,143.36,143.32,6.9769]